fUST/lending_fUST_20250514
["ID","MTS","AMOUNT","RATE_DAILY","PERIOD"]
[360986150,1747182650821,-400.0,0.00014246,2]
[360986151,1747182650831,-416.48461931,0.00014246,2]
[360986152,1747182650841,-771.92,0.00014246,2]
[360986153,1747182650850,-400.0,0.00014246,2]
[360986154,1747182650859,-400.0,0.00014246,2]
[360986155,1747182650869,-412.74,0.00014246,2]
[360986156,1747182650878,-400.0,0.00014246,2]
[360986157,1747182650888,-400.0,0.00014246,2]
[360986158,1747182650897,-400.0,0.00014246,2]
[360986159,1747182650907,-400.0,0.00014246,2]
[360986160,1747182650916,-428.97,0.00014246,2]
[360986161,1747182650926,-400.0,0.00014246,2]
[360986162,1747182650935,-400.0,0.00014246,2]
[360986163,1747182650944,-591.14,0.00014246,2]
[360986164,1747182650954,-400.0,0.00014246,2]
[360986165,1747182650963,-400.0,0.00014246,2]
[360986166,1747182650973,-440.14,0.00014246,2]
[360986167,1747182650982,-400.0,0.00014246,2]
[360986168,1747182650992,-400.0,0.00014246,2]
[360986169,1747182651002,-400.0,0.00014246,2]
[360986170,1747182651011,-400.0,0.00014246,2]
[360986171,1747182651021,-400.0,0.00014246,2]
[360986172,1747182651031,-400.0,0.00014246,2]
[360986173,1747182651041,-400.0,0.00014246,2]
[360986174,1747182651050,-400.0,0.00014246,2]
[360986175,1747182651060,-400.0,0.00014246,2]
[360986176,1747182651070,-391.46975995,0.00014246,2]
[360986178,1747182651079,-400.0,0.00014246,2]
[360986180,1747182651088,-400.0,0.00014246,2]
[360986182,1747182651098,-423.78,0.00014246,2]
[360986184,1747182651107,-400.0,0.00014246,2]
[360986186,1747182651117,-400.0,0.00014246,2]
[360986188,1747182651126,-400.0,0.00014246,2]
[360986190,1747182651136,-900.34,0.00014246,2]
[360986192,1747182651145,-820.3,0.00014246,2]
[360986194,1747182651155,-651.67,0.00014246,2]
[360986195,1747182651164,-869.21,0.00014246,2]
[360986196,1747182651174,-415.73,0.00014246,2]
[360986197,1747182651184,-400.0,0.00014246,2]
[360986198,1747182651193,-403.21355972,0.00014246,2]
[360986199,1747182651203,-965.6,0.00014246,2]
[360986200,1747182651213,-494.7,0.00014246,2]
[360986201,1747182651223,-954.1,0.00014246,2]
[360986202,1747182651232,-400.0,0.00014246,2]
[360986203,1747182651242,-400.0,0.00014246,2]
[360986204,1747182651252,-400.0,0.00014246,2]
[360986205,1747182651262,-400.0,0.00014246,2]
[360986207,1747182651271,-9081.29,0.00014246,2]
[360986209,1747182651281,-2095.59,0.00014246,2]
[360986211,1747182651290,-400.0,0.00014246,2]
[360986213,1747182651300,-520.24608476,0.00014246,2]
[360986215,1747182651310,-602.95,0.00014246,2]
[360986217,1747182651320,-400.0,0.00014246,2]
[360986219,1747182651329,-400.0,0.00014246,2]
[360986220,1747182651339,-400.0,0.00014246,2]
[360986222,1747182651351,-665.33,0.00014246,2]
[360986223,1747182651361,-400.0,0.00014246,2]
[360986224,1747182651370,-450.87259244,0.00014246,2]
[360986225,1747182651380,-637.13,0.00014246,2]
[360986226,1747182651389,-400.0,0.00014246,2]
[360986227,1747182651399,-464.56,0.00014246,2]
[360986228,1747182651409,-963.22,0.00014246,2]
[360986229,1747182651419,-400.0,0.00014246,2]
[360986230,1747182651428,-400.0,0.00014246,2]
[360986231,1747182651438,-438.17,0.00014246,2]
[360986232,1747182651447,-400.0,0.00014246,2]
[360986233,1747182651457,-1369.88,0.00014246,2]
[360986234,1747182651467,-956.75,0.00014246,2]
[360986235,1747182651476,-400.0,0.00014246,2]
[360986236,1747182651486,-1795.01,0.00014246,2]
[360986237,1747182651496,-485.25018688,0.00014246,2]
[360986238,1747182651506,-400.0,0.00014246,2]
[360986239,1747182651515,-400.0,0.00014246,2]
[360986240,1747182651525,-400.0,0.00014246,2]
[360986241,1747182651535,-400.0,0.00014246,2]
[360986242,1747182651544,-400.0,0.00014246,2]
[360986243,1747182651555,-400.0,0.00014246,2]
[360986244,1747182651564,-400.0,0.00014246,2]
[360986245,1747182651573,-675.97,0.00014246,2]
[360986246,1747182651584,-400.0,0.00014246,2]
[360986247,1747182651593,-463.47,0.00014246,2]
[360986248,1747182651603,-479.59,0.00014246,2]
[360986249,1747182651613,-635.92,0.00014246,2]
[360986250,1747182651623,-477.84,0.00014246,2]
[360986251,1747182651633,-400.0,0.00014246,2]
[360986252,1747182651642,-2627.02,0.00014246,2]
[360986253,1747182651652,-400.0,0.00014246,2]
[360986254,1747182651661,-737.45,0.00014246,2]
[360986255,1747182651671,-1003.24,0.00014246,2]
[360986256,1747182651680,-400.0,0.00014246,2]
[360986257,1747182651690,-557.49,0.00014246,2]
[360986258,1747182651700,-1106.94,0.00014246,2]
[360986259,1747182651709,-400.0,0.00014246,2]
[360986260,1747182651719,-400.0,0.00014246,2]
[360986261,1747182651728,-1526.6,0.00014246,2]
[360986262,1747182651738,-400.0,0.00014246,2]
[360986263,1747182651747,-1521.86,0.00014246,2]
[360986264,1747182651756,-600.34,0.00014246,2]
[360986265,1747182651766,-400.0,0.00014246,2]
[360986266,1747182651775,-1308.11,0.00014246,2]
[360986267,1747182651785,-441.22,0.00014246,2]
[360986268,1747182651794,-400.0,0.00014246,2]
[360986269,1747182651804,-400.0,0.00014246,2]
[360986270,1747182651813,-400.0,0.00014246,2]
[360986271,1747182651823,-400.0,0.00014246,2]
[360986272,1747182651832,-408.19,0.00014246,2]
[360986273,1747182651841,-400.0,0.00014246,2]
[360986274,1747182651852,-875.92,0.00014246,2]
[360986275,1747182651862,-1234.35,0.00014246,2]
[360986276,1747182651871,-400.0,0.00014246,2]
[360986277,1747182651881,-400.0,0.00014246,2]
[360986278,1747182651890,-400.0,0.00014246,2]
[360986279,1747182651900,-400.0,0.00014246,2]
[360986280,1747182651910,-1129.48,0.00014246,2]
[360986281,1747182651920,-400.0,0.00014246,2]
[360986282,1747182651929,-400.0,0.00014246,2]
[360986283,1747182651939,-1223.09,0.00014246,2]
[360986284,1747182651948,-445.3,0.00014246,2]
[360986285,1747182651958,-1545.92,0.00014246,2]
[360986286,1747182651967,-400.0,0.00014246,2]
[360986287,1747182651976,-400.0,0.00014246,2]
[360986288,1747182651986,-735.55,0.00014246,2]
[360986289,1747182651996,-770.1,0.00014246,2]
[360986290,1747182652006,-875.39,0.00014246,2]
[360986291,1747182652015,-2632.73,0.00014246,2]
[360986292,1747182652024,-1201.65,0.00014246,2]
[360986293,1747182652034,-400.0,0.00014246,2]
[360986294,1747182652043,-400.0,0.00014246,2]
[360986295,1747182652052,-440.72,0.00014246,2]
[360986296,1747182652062,-473.98,0.00014246,2]
[360986297,1747182652072,-192.74081486,0.00014246,2]
[360986298,1747182652081,-702.64,0.00014246,2]
[360986299,1747182652090,-402.074,0.00014476,2]
[360986300,1747182652100,-404.0,0.00014476,2]
[360986301,1747182652109,-744.76,0.000145,2]
[360986302,1747182652122,-400.0,0.0001452,2]
[360986303,1747182652132,-400.0,0.0001452,2]
[360986304,1747182652142,-400.0,0.0001452,2]
[360986305,1747182652151,-408.12,0.0001452,2]
[360986306,1747182652161,-452.23051336,0.0001452,2]
[360986307,1747182652170,-309.83,0.0001452,2]
[360986308,1747182652180,-400.0,0.0001452,2]
[360986309,1747182652189,-379.76527134,0.0001452,2]
[360986310,1747182652199,-400.0,0.0001452,2]
[360986311,1747182652209,-400.0,0.0001452,2]
[360986312,1747182652218,-400.0,0.0001452,2]
[360986313,1747182652228,-400.0,0.0001452,2]
[360986314,1747182652237,-400.0,0.0001452,2]
[360986315,1747182652251,-400.0,0.0001452,2]
[360986316,1747182652261,-776.29,0.0001452,2]
[360986317,1747182652270,-494.38,0.0001452,2]
[360986318,1747182652279,-400.0,0.0001452,2]
[360986319,1747182652289,-400.0,0.0001452,2]
[360986320,1747182652298,-400.0,0.0001452,2]
[360986321,1747182652308,-400.0,0.0001452,2]
[360986322,1747182652318,-400.0,0.0001452,2]
[360986323,1747182652327,-771.92,0.0001452,2]
[360986324,1747182652336,-400.0,0.0001452,2]
[360986325,1747182652346,-410.44302355,0.0001452,2]
[360986326,1747182652358,-412.74,0.0001452,2]
[360986327,1747182652367,-400.0,0.0001452,2]
[360986328,1747182652377,-400.0,0.0001452,2]
[360986329,1747182652387,-400.0,0.0001452,2]
[360986330,1747182652397,-400.0,0.0001452,2]
[360986331,1747182652406,-428.97,0.0001452,2]
[360986332,1747182652415,-400.0,0.0001452,2]
[360986333,1747182652426,-400.0,0.0001452,2]
[360986334,1747182652436,-591.14,0.0001452,2]
[360986335,1747182652445,-400.0,0.0001452,2]
[360986336,1747182652455,-400.0,0.0001452,2]
[360986337,1747182652465,-440.14,0.0001452,2]
[360986338,1747182652474,-400.0,0.0001452,2]
[360986339,1747182652483,-400.0,0.0001452,2]
[360986340,1747182652494,-400.0,0.0001452,2]
[360986341,1747182652503,-400.0,0.0001452,2]
[360986342,1747182652512,-400.0,0.0001452,2]
[360986343,1747182652523,-400.0,0.0001452,2]
[360986344,1747182652532,-400.0,0.0001452,2]
[360986345,1747182652541,-400.0,0.0001452,2]
[360986346,1747182652551,-400.0,0.0001452,2]
[360986347,1747182652560,-400.0,0.0001452,2]
[360986348,1747182652570,-423.78,0.0001452,2]
[360986349,1747182652579,-400.0,0.0001452,2]
[360986350,1747182652589,-400.0,0.0001452,2]
[360986351,1747182652599,-400.0,0.0001452,2]
[360986352,1747182652609,-900.34,0.0001452,2]
[360986353,1747182652618,-820.3,0.0001452,2]
[360986354,1747182652628,-651.67,0.0001452,2]
[360986355,1747182652638,-869.21,0.0001452,2]
[360986356,1747182652647,-415.73,0.0001452,2]
[360986357,1747182652657,-400.0,0.0001452,2]
[360986358,1747182652666,-965.6,0.0001452,2]
[360986359,1747182652676,-494.7,0.0001452,2]
[360986360,1747182652685,-954.1,0.0001452,2]
[360986361,1747182652695,-400.0,0.0001452,2]
[360986362,1747182652704,-400.0,0.0001452,2]
[360986363,1747182652715,-400.0,0.0001452,2]
[360986364,1747182652724,-400.0,0.0001452,2]
[360986365,1747182652734,-9081.29,0.0001452,2]
[360986366,1747182652744,-2095.59,0.0001452,2]
[360986367,1747182652753,-400.0,0.0001452,2]
[360986368,1747182652762,-602.95,0.0001452,2]
[360986369,1747182652772,-400.0,0.0001452,2]
[360986370,1747182652781,-400.0,0.0001452,2]
[360986371,1747182652791,-400.0,0.0001452,2]
[360986372,1747182652801,-665.33,0.0001452,2]
[360986373,1747182652810,-400.0,0.0001452,2]
[360986374,1747182652820,-637.13,0.0001452,2]
[360986375,1747182652829,-400.0,0.0001452,2]
[360986376,1747182652838,-464.56,0.0001452,2]
[360986377,1747182652848,-963.22,0.0001452,2]
[360986378,1747182652858,-400.0,0.0001452,2]
[360986379,1747182652867,-400.0,0.0001452,2]
[360986380,1747182652877,-438.17,0.0001452,2]
[360986381,1747182652886,-413.09576569,0.0001452,2]
[360986382,1747182652896,-1369.88,0.0001452,2]
[360986383,1747182652906,-956.75,0.0001452,2]
[360986384,1747182652916,-1795.01,0.0001452,2]
[360986385,1747182652926,-400.0,0.0001452,2]
[360986386,1747182652935,-400.0,0.0001452,2]
[360986387,1747182652945,-400.0,0.0001452,2]
[360986388,1747182652954,-400.0,0.0001452,2]
[360986389,1747182652963,-400.0,0.0001452,2]
[360986390,1747182652973,-400.0,0.0001452,2]
[360986391,1747182652983,-400.0,0.0001452,2]
[360986392,1747182652994,-400.0,0.0001452,2]
[360986393,1747182653003,-675.97,0.0001452,2]
[360986394,1747182653013,-400.0,0.0001452,2]
[360986395,1747182653023,-463.47,0.0001452,2]
[360986396,1747182653033,-479.59,0.0001452,2]
[360986397,1747182653042,-635.92,0.0001452,2]
[360986398,1747182653051,-477.84,0.0001452,2]
[360986399,1747182653060,-400.0,0.0001452,2]
[360986400,1747182653070,-2627.02,0.0001452,2]
[360986401,1747182653080,-400.0,0.0001452,2]
[360986402,1747182653089,-737.45,0.0001452,2]
[360986403,1747182653099,-1003.24,0.0001452,2]
[360986404,1747182653108,-400.0,0.0001452,2]
[360986405,1747182653117,-557.49,0.0001452,2]
[360986406,1747182653127,-1106.94,0.0001452,2]
[360986407,1747182653136,-400.0,0.0001452,2]
[360986408,1747182653146,-400.0,0.0001452,2]
[360986409,1747182653155,-1526.6,0.0001452,2]
[360986410,1747182653165,-400.0,0.0001452,2]
[360986411,1747182653174,-1521.86,0.0001452,2]
[360986412,1747182653183,-600.34,0.0001452,2]
[360986413,1747182653193,-400.0,0.0001452,2]
[360986414,1747182653202,-1308.11,0.0001452,2]
[360986415,1747182653213,-441.22,0.0001452,2]
[360986416,1747182653222,-400.0,0.0001452,2]
[360986417,1747182653232,-400.0,0.0001452,2]
[360986418,1747182653243,-400.0,0.0001452,2]
[360986419,1747182653253,-408.19,0.0001452,2]
[360986420,1747182653263,-400.0,0.0001452,2]
[360986421,1747182653272,-400.0,0.0001452,2]
[360986422,1747182653282,-875.92,0.0001452,2]
[360986423,1747182653291,-1234.35,0.0001452,2]
[360986424,1747182653302,-400.0,0.0001452,2]
[360986425,1747182653311,-400.0,0.0001452,2]
[360986426,1747182653321,-400.0,0.0001452,2]
[360986427,1747182653330,-400.0,0.0001452,2]
[360986428,1747182653339,-1129.48,0.0001452,2]
[360986429,1747182653351,-400.0,0.0001452,2]
[360986430,1747182653362,-400.0,0.0001452,2]
[360986431,1747182653371,-1223.09,0.0001452,2]
[360986432,1747182653381,-445.3,0.0001452,2]
[360986433,1747182653392,-1545.92,0.0001452,2]
[360986434,1747182653402,-400.0,0.0001452,2]
[360986435,1747182653411,-400.0,0.0001452,2]
[360986436,1747182653422,-735.55,0.0001452,2]
[360986437,1747182653432,-770.1,0.0001452,2]
[360986438,1747182653442,-875.39,0.0001452,2]
[360986439,1747182653451,-2632.73,0.0001452,2]
[360986440,1747182653461,-1201.65,0.0001452,2]
[360986441,1747182653471,-400.0,0.0001452,2]
[360986442,1747182653480,-400.0,0.0001452,2]
[360986443,1747182653490,-440.72,0.0001452,2]
[360986444,1747182653500,-473.98,0.0001452,2]
[360986445,1747182653510,-702.64,0.0001452,2]
[360986446,1747182653519,-400.0,0.00014794,2]
[360986447,1747182653529,-400.0,0.00014794,2]
[360986448,1747182653539,-400.0,0.00014794,2]
[360986449,1747182653548,-408.12,0.00014794,2]
[360986450,1747182653558,-400.0,0.00014794,2]
[360986451,1747182653567,-400.0,0.00014794,2]
[360986452,1747182653576,-400.0,0.00014794,2]
[360986453,1747182653587,-400.0,0.00014794,2]
[360986454,1747182653596,-400.0,0.00014794,2]
[360986455,1747182653606,-400.0,0.00014794,2]
[360986456,1747182653616,-400.0,0.00014794,2]
[360986457,1747182653626,-776.29,0.00014794,2]
[360986458,1747182653635,-494.38,0.00014794,2]
[360986459,1747182653645,-400.0,0.00014794,2]
[360986460,1747182653654,-400.0,0.00014794,2]
[360986461,1747182653664,-400.0,0.00014794,2]
[360986462,1747182653673,-400.0,0.00014794,2]
[360986463,1747182653683,-771.92,0.00014794,2]
[360986464,1747182653692,-258.64698062,0.00014794,2]
[360986465,1747182653701,-412.74,0.00014794,2]
[360986466,1747182653711,-400.0,0.00014794,2]
[360986467,1747182653721,-400.0,0.00014794,2]
[360986468,1747182653731,-400.0,0.00014794,2]
[360986469,1747182653741,-400.0,0.00014794,2]
[360986470,1747182653751,-428.97,0.00014794,2]
[360986471,1747182653933,-400.0,0.00014794,2]
[360986472,1747182653946,-400.0,0.00014794,2]
[360986473,1747182653958,-591.14,0.00014794,2]
[360986474,1747182653967,-512.07058582,0.00014794,2]
[360986475,1747182653978,-400.0,0.00014794,2]
[360986476,1747182653987,-440.14,0.00014794,2]
[360986477,1747182653998,-400.0,0.00014794,2]
[360986478,1747182654008,-400.0,0.00014794,2]
[360986479,1747182654017,-400.0,0.00014794,2]
[360986480,1747182654027,-400.0,0.00014794,2]
[360986481,1747182654036,-400.0,0.00014794,2]
[360986482,1747182654046,-400.0,0.00014794,2]
[360986483,1747182654057,-400.0,0.00014794,2]
[360986484,1747182654067,-400.0,0.00014794,2]
[360986485,1747182654078,-400.0,0.00014794,2]
[360986486,1747182654087,-400.0,0.00014794,2]
[360986487,1747182654096,-423.78,0.00014794,2]
[360986488,1747182654106,-400.0,0.00014794,2]
[360986489,1747182654117,-400.0,0.00014794,2]
[360986490,1747182654127,-400.0,0.00014794,2]
[360986491,1747182654138,-900.34,0.00014794,2]
[360986492,1747182654148,-820.3,0.00014794,2]
[360986493,1747182654158,-651.67,0.00014794,2]
[360986494,1747182654168,-869.21,0.00014794,2]
[360986495,1747182654177,-415.73,0.00014794,2]
[360986496,1747182654187,-400.0,0.00014794,2]
[360986497,1747182654197,-965.6,0.00014794,2]
[360986498,1747182654206,-494.7,0.00014794,2]
[360986499,1747182654216,-954.1,0.00014794,2]
[360986500,1747182654226,-400.0,0.00014794,2]
[360986501,1747182654237,-400.0,0.00014794,2]
[360986502,1747182654247,-400.0,0.00014794,2]
[360986503,1747182654257,-400.0,0.00014794,2]
[360986504,1747182654266,-9081.29,0.00014794,2]
[360986505,1747182654276,-2095.59,0.00014794,2]
[360986506,1747182654286,-400.0,0.00014794,2]
[360986507,1747182654295,-602.95,0.00014794,2]
[360986508,1747182654304,-400.0,0.00014794,2]
[360986509,1747182654314,-400.0,0.00014794,2]
[360986510,1747182654323,-400.0,0.00014794,2]
[360986511,1747182654334,-665.33,0.00014794,2]
[360986512,1747182654344,-400.0,0.00014794,2]
[360986513,1747182654358,-637.13,0.00014794,2]
[360986514,1747182654367,-400.0,0.00014794,2]
[360986515,1747182654377,-464.56,0.00014794,2]
[360986516,1747182654387,-963.22,0.00014794,2]
[360986517,1747182654398,-400.0,0.00014794,2]
[360986518,1747182654407,-178.19630529,0.00014794,2]
[360986519,1747182654417,-438.17,0.00014794,2]
[360986520,1747182654426,-1369.88,0.00014794,2]
[360986521,1747182654436,-956.75,0.00014794,2]
[360986522,1747182654446,-1795.01,0.00014794,2]
[360986523,1747182654455,-400.0,0.00014794,2]
[360986524,1747182654465,-400.0,0.00014794,2]
[360986525,1747182654474,-400.0,0.00014794,2]
[360986526,1747182654484,-400.0,0.00014794,2]
[360986527,1747182654495,-400.0,0.00014794,2]
[360986528,1747182654504,-400.0,0.00014794,2]
[360986529,1747182654513,-400.0,0.00014794,2]
[360986530,1747182654523,-400.0,0.00014794,2]
[360986531,1747182654532,-675.97,0.00014794,2]
[360986532,1747182654543,-400.0,0.00014794,2]
[360986533,1747182654552,-463.47,0.00014794,2]
[360986534,1747182654562,-479.59,0.00014794,2]
[360986535,1747182654572,-635.92,0.00014794,2]
[360986536,1747182654581,-477.84,0.00014794,2]
[360986537,1747182654591,-400.0,0.00014794,2]
[360986538,1747182654601,-2627.02,0.00014794,2]
[360986539,1747182654610,-400.0,0.00014794,2]
[360986540,1747182654622,-737.45,0.00014794,2]
[360986541,1747182654633,-1003.24,0.00014794,2]
[360986542,1747182654643,-400.0,0.00014794,2]
[360986543,1747182654653,-557.49,0.00014794,2]
[360986544,1747182654663,-1106.94,0.00014794,2]
[360986545,1747182654673,-400.0,0.00014794,2]
[360986546,1747182654683,-400.0,0.00014794,2]
[360986547,1747182654692,-1526.6,0.00014794,2]
[360986548,1747182654703,-400.0,0.00014794,2]
[360986549,1747182654713,-1521.86,0.00014794,2]
[360986550,1747182654724,-600.34,0.00014794,2]
[360986551,1747182654734,-400.0,0.00014794,2]
[360986552,1747182654745,-1308.11,0.00014794,2]
[360986553,1747182654755,-441.22,0.00014794,2]
[360986554,1747182654765,-400.0,0.00014794,2]
[360986555,1747182654777,-400.0,0.00014794,2]
[360986556,1747182654787,-400.0,0.00014794,2]
[360986557,1747182654798,-408.19,0.00014794,2]
[360986558,1747182654808,-400.0,0.00014794,2]
[360986559,1747182654818,-400.0,0.00014794,2]
[360986560,1747182654828,-875.92,0.00014794,2]
[360986561,1747182654839,-1234.35,0.00014794,2]
[360986562,1747182654848,-400.0,0.00014794,2]
[360986563,1747182654858,-400.0,0.00014794,2]
[360986564,1747182654867,-400.0,0.00014794,2]
[360986565,1747182654877,-1129.48,0.00014794,2]
[360986566,1747182654886,-400.0,0.00014794,2]
[360986567,1747182654896,-400.0,0.00014794,2]
[360986568,1747182654906,-1223.09,0.00014794,2]
[360986569,1747182654916,-445.3,0.00014794,2]
[360986570,1747182654926,-1545.92,0.00014794,2]
[360986571,1747182654936,-400.0,0.00014794,2]
[360986572,1747182654945,-735.55,0.00014794,2]
[360986573,1747182654956,-400.0,0.00014794,2]
[360986574,1747182654966,-770.1,0.00014794,2]
[360986575,1747182654975,-875.39,0.00014794,2]
[360986576,1747182654985,-2632.73,0.00014794,2]
[360986577,1747182654995,-1201.65,0.00014794,2]
[360986578,1747182655005,-400.0,0.00014794,2]
[360986579,1747182655015,-400.0,0.00014794,2]
[360986580,1747182655025,-440.72,0.00014794,2]
[360986581,1747182655035,-473.98,0.00014794,2]
[360986582,1747182655045,-702.64,0.00014794,2]
[360986583,1747182655054,-9115.67656014,0.000149,2]
[360986584,1747182655064,-151.0,0.00015,2]
[360986585,1747182655074,-160.0,0.00015,2]
[360986586,1747182655084,-49962.66136705,0.00015,7]
[360986587,1747182655093,-420.0,0.00015007,2]
[360986588,1747182655103,-400.0,0.00015068,2]
[360986589,1747182655112,-400.0,0.00015068,2]
[360986590,1747182655122,-340.3554363,0.00015068,2]
[360986591,1747182655131,-408.12,0.00015068,2]
[360986592,1747182655141,-400.0,0.00015068,2]
[360986593,1747182655150,-400.0,0.00015068,2]
[360986594,1747182655160,-400.0,0.00015068,2]
[360986595,1747182655169,-400.0,0.00015068,2]
[360986596,1747182655179,-400.0,0.00015068,2]
[360986597,1747182655189,-400.0,0.00015068,2]
[360986598,1747182655199,-400.0,0.00015068,2]
[360986599,1747182655208,-776.29,0.00015068,2]
[360986600,1747182655218,-494.38,0.00015068,2]
[360986601,1747182655227,-400.0,0.00015068,2]
[360986602,1747182655237,-400.0,0.00015068,2]
[360986603,1747182655247,-400.0,0.00015068,2]
[360986604,1747182655257,-400.0,0.00015068,2]
[360986605,1747182655267,-771.92,0.00015068,2]
[360986606,1747182655278,-412.74,0.00015068,2]
[360986607,1747182655288,-400.0,0.00015068,2]
[360986608,1747182655298,-400.0,0.00015068,2]
[360986609,1747182655308,-400.0,0.00015068,2]
[360986610,1747182655319,-400.0,0.00015068,2]
[360986611,1747182655328,-428.97,0.00015068,2]
[360986612,1747182655338,-400.0,0.00015068,2]
[360986613,1747182655352,-400.0,0.00015068,2]
[360986614,1747182655361,-591.14,0.00015068,2]
[360986615,1747182655371,-400.0,0.00015068,2]
[360986616,1747182655381,-440.14,0.00015068,2]
[360986617,1747182655391,-400.0,0.00015068,2]
[360986618,1747182655400,-400.0,0.00015068,2]
[360986619,1747182655409,-400.0,0.00015068,2]
[360986620,1747182655419,-400.0,0.00015068,2]
[360986621,1747182655430,-400.0,0.00015068,2]
[360986622,1747182655440,-400.0,0.00015068,2]
[360986623,1747182655450,-400.0,0.00015068,2]
[360986624,1747182655460,-237.71692546,0.00015068,2]
[360986625,1747182655668,-162.28307454,0.00015068,2]
[360986626,1747182655679,-400.0,0.00015068,2]
[360986627,1747182655689,-400.0,0.00015068,2]
[360986628,1747182655699,-275.14742098,0.00015068,2]
[360986637,1747183624148,-5000.0,0.00012163,2]
[360986638,1747183624174,-153.03333801,0.00012186,2]
[360986639,1747183624197,-300.0,0.00012286,2]
[360986640,1747183624219,-19546.96666199,0.00012287,2]
[360986683,1747183832547,-250.0,0.00011284,2]
[360986684,1747183832557,-184.89445479,0.00011881,2]
[360986685,1747183832599,-254.02492061,0.00011881,2]
[360986687,1747183832609,-5000.0,0.00012063,2]
[360986689,1747183832620,-610.10240068,0.00012185,2]
[360986691,1747183832630,-389.85716744,0.00012185,2]
[360986693,1747183832641,-300.0,0.00012283,2]
[360986695,1747183832651,-300.0,0.00012284,2]
[360986697,1747183832661,-300.0,0.00012284,2]
[360986700,1747183832671,-1200.0,0.00012284,2]
[360986702,1747183832681,-153.11821537,0.00012285,2]
[360986719,1747183838406,-500.0,0.00012283,2]
[360986720,1747183838416,-500.0,0.00012283,2]
[360986721,1747183838426,-510.8259617,0.00012283,2]
[360986722,1747183838435,-500.0,0.00012283,2]
[360986723,1747183838445,-500.0,0.00012283,2]
[360986724,1747183838454,-500.0,0.00012283,2]
[360986725,1747183838464,-500.0,0.00012283,2]
[360986726,1747183838473,-500.0,0.00012283,2]
[360986727,1747183838483,-500.0,0.00012283,2]
[360986729,1747183838492,-500.0,0.00012283,2]
[360986730,1747183838501,-500.0,0.00012283,2]
[360986731,1747183838510,-500.0,0.00012283,2]
[360986732,1747183838520,-500.0,0.00012283,2]
[360986733,1747183838529,-500.0,0.00012283,2]
[360986734,1747183838538,-500.0,0.00012283,2]
[360986735,1747183838548,-500.0,0.00012283,2]
[360986736,1747183838557,-201.81726838,0.00012283,2]
[360986737,1747183838567,-500.0,0.00012283,2]
[360986738,1747183838576,-500.0,0.00012283,2]
[360986739,1747183838585,-500.0,0.00012283,2]
[360986740,1747183838594,-500.0,0.00012283,2]
[360986741,1747183838603,-500.0,0.00012283,2]
[360986742,1747183838612,-500.0,0.00012283,2]